bitfinex/quotes_BTCUSD_20241018
["timestamp","ask_amount","ask_price","bid_price","bid_amount"]
[1729280664496,0.0135546,68627.0,68624.0,0.1]
[1729280664705,0.0135546,68626.0,68624.0,0.1]
[1729280664933,0.15061715,68628.0,68624.0,0.1]
[1729280664934,0.0135546,68625.0,68624.0,0.1]
[1729280665353,0.0135546,68625.0,68621.0,0.30836913]
[1729280665595,0.001658,68628.0,68621.0,0.30836913]
[1729280665596,0.001658,68628.0,68623.0,0.0901]
[1729280665824,0.01355374,68627.0,68623.0,0.0901]
[1729280666048,0.01355374,68626.0,68623.0,0.0901]
[1729280666294,0.001658,68628.0,68623.0,0.0901]
[1729280666525,0.01355268,68627.0,68623.0,0.0901]
[1729280666754,0.01355268,68626.0,68623.0,0.0901]
[1729280666963,0.001658,68628.0,68623.0,0.0901]
[1729280667157,0.01355275,68627.0,68623.0,0.0901]
[1729280667367,0.001658,68628.0,68623.0,0.0901]
[1729280667570,0.01355168,68627.0,68623.0,0.0901]
[1729280667798,0.01355168,68626.0,68623.0,0.0901]
[1729280668035,0.01355168,68625.0,68623.0,0.0901]
[1729280668240,0.001658,68628.0,68623.0,0.0901]
[1729280668445,0.01354627,68627.0,68623.0,0.0901]
[1729280668643,0.001658,68625.0,68623.0,0.0901]
[1729280668858,0.01354627,68624.0,68623.0,0.0901]
[1729280669305,0.01354627,68624.0,68623.0,0.1901]
[1729280669721,0.01354303,68624.0,68623.0,2.085687]
[1729280669922,0.001658,68625.0,68623.0,2.085687]
[1729280669923,0.001658,68625.0,68624.0,0.1]
[1729280670761,0.00827414,68625.0,68624.0,0.1]
[1729280671395,0.00827414,68625.0,68623.0,0.0901]
[1729280671613,0.01353456,68624.0,68623.0,0.0901]
[1729280671817,0.001658,68625.0,68624.0,0.1]
[1729280672864,0.001658,68625.0,68623.0,0.0901]
[1729280676147,0.00661564,68624.0,68623.0,0.0901]
[1729280676351,0.00661564,68624.0,68623.0,2.474973]
[1729280676555,0.00661564,68624.0,68623.0,2.502108]
[1729280676785,0.001658,68625.0,68624.0,0.1]
[1729280677427,0.00827414,68625.0,68624.0,0.1]
[1729280677631,0.001658,68625.0,68624.0,0.1]
[1729280677838,0.00827414,68625.0,68623.0,0.0901]
[1729280678043,0.001658,68625.0,68623.0,0.0901]
[1729280678225,0.00661564,68624.0,68623.0,0.0901]
[1729280678427,0.00661564,68624.0,68623.0,2.385352]
[1729280678630,0.001658,68625.0,68624.0,0.1]
[1729280679047,0.0218123,68625.0,68624.0,0.1]
[1729280679263,0.17077145,68625.0,68624.0,0.1]
[1729280679904,0.17077145,68625.0,68620.0,0.000829]
[1729280680081,0.16249731,68624.0,68622.0,0.1]
[1729280680235,0.14895915,68624.0,68623.0,2.119332]
[1729280680453,0.16250259,68624.0,68623.0,2.046467]
[1729280680869,0.16250263,68624.0,68623.0,2.046467]
[1729280683948,0.16250263,68624.0,68623.0,2.264925]
[1729280684122,0.16250263,68624.0,68623.0,0.1]
[1729280684823,0.16250263,68624.0,68623.0,2.19206]
[1729280685661,0.17334021,68624.0,68623.0,2.19206]
[1729280688547,0.1733439,68624.0,68623.0,2.19206]
[1729280689602,0.16250632,68624.0,68623.0,2.19206]
[1729280691086,0.16250632,68624.0,68623.0,2.28906]
[1729280691497,0.14895915,68624.0,68623.0,2.28906]
[1729280691930,0.16250663,68624.0,68623.0,2.28906]
[1729280694087,0.16250663,68624.0,68623.0,2.215769]
[1729280694501,0.19502177,68624.0,68620.0,0.000829]
[1729280694737,0.04606262,68623.0,68620.0,0.000829]
[1729280694948,0.21236202,68622.0,68620.0,0.000829]
[1729280695153,0.10673941,68621.0,68620.0,0.000829]
[1729280695363,0.20173841,68621.0,68620.0,0.000829]
[1729280695604,0.21907866,68621.0,68620.0,0.000829]
[1729280695812,0.20173841,68621.0,68620.0,0.000829]
[1729280696233,0.15567579,68621.0,68620.0,0.000829]
[1729280696439,0.19088299,68621.0,68620.0,0.000829]
[1729280696849,0.20171596,68621.0,68620.0,0.000829]
[1729280700457,0.18004999,68621.0,68620.0,0.000829]
[1729280700922,0.20171596,68621.0,68620.0,0.000829]
[1729280701409,0.18004999,68621.0,68620.0,0.000829]
[1729280701580,0.20171596,68621.0,68620.0,0.000829]
[1729280702008,0.18004999,68621.0,68620.0,0.092429]
[1729280702200,0.16921702,68621.0,68620.0,0.092429]
[1729280702410,0.15567579,68621.0,68620.0,0.092429]
[1729280703031,0.15567579,68621.0,68620.0,0.000829]
[1729280703249,0.16920775,68621.0,68620.0,0.000829]
[1729280703448,0.18003311,68621.0,68620.0,0.000829]
[1729280703856,0.20168338,68621.0,68620.0,0.000829]
[1729280704267,0.21900278,68621.0,68620.0,0.000829]
[1729280704471,0.56187961,68621.0,68620.0,0.000829]
[1729280704675,0.66867961,68621.0,68620.0,0.000829]
[1729280704883,0.68833656,68621.0,68620.0,0.000829]
[1729280705522,0.58005183,68621.0,68620.0,0.000829]
[1729280706647,0.66662593,68621.0,68620.0,0.000829]
[1729280707521,0.30078863,68621.0,68620.0,0.000829]
[1729280707752,0.21898863,68621.0,68620.0,0.000829]
[1729280707972,0.2016723,68621.0,68620.0,0.000829]
[1729280708193,0.16920417,68621.0,68620.0,0.000829]
[1729280709067,0.16920417,68621.0,68613.0,0.181958]
[1729280709268,0.16248676,68620.0,68615.0,0.1]
[1729280709476,0.14895915,68620.0,68615.0,0.1]
[1729280709717,0.00670086,68619.0,68615.0,0.1]
[1729280710378,0.00670086,68619.0,68613.0,0.181958]
[1729280710592,0.00670086,68619.0,68615.0,0.1]
[1729280710796,0.14895915,68620.0,68613.0,0.181958]
[1729280711044,0.00670527,68619.0,68616.0,0.1]
[1729280711271,0.14895915,68620.0,68616.0,0.1]
[1729280711483,0.00670527,68619.0,68616.0,0.1]
[1729280712508,0.00670527,68619.0,68613.0,0.181958]
[1729280712741,0.00670527,68619.0,68615.0,0.1]
[1729280713184,0.14895915,68620.0,68615.0,0.1]
[1729280713417,0.00670527,68619.0,68615.0,0.1]
[1729280713834,0.00670527,68619.0,68617.0,0.1]
[1729280714082,0.001658,68624.0,68618.0,1.078369]
[1729280714288,0.001658,68624.0,68620.0,0.1]
[1729280714503,0.001658,68624.0,68622.0,0.1]
[1729280714716,0.001658,68624.0,68620.0,0.1]
[1729280714947,0.001658,68624.0,68623.0,0.1]
[1729280715787,0.001658,68624.0,68623.0,0.1803]
[1729280716001,0.001658,68624.0,68623.0,0.0803]
[1729280721212,0.001658,68624.0,68618.0,0.0966]
[1729280721426,0.001658,68624.0,68621.0,0.1]
[1729280721629,0.001658,68624.0,68623.0,0.1]
[1729280721857,0.001658,68624.0,68621.0,0.1]
[1729280722071,0.001658,68624.0,68623.0,0.1]
[1729280722277,0.001658,68624.0,68621.0,0.1]
[1729280722485,0.001658,68624.0,68623.0,0.1]
[1729280722695,0.001658,68624.0,68621.0,0.1]
[1729280722932,0.001658,68624.0,68623.0,0.1]
[1729280723148,0.001658,68624.0,68621.0,0.1]
[1729280723358,0.001658,68624.0,68623.0,0.1]
[1729280724827,0.001658,68624.0,68618.0,0.0966]
[1729280725055,0.001658,68624.0,68620.0,0.1]
[1729280725239,0.001658,68624.0,68622.0,0.1]
[1729280725447,0.14895915,68623.0,68622.0,0.1]
[1729280725649,0.1689335,68623.0,68622.0,0.1]
[1729280726067,0.1689335,68623.0,68613.0,0.094]
[1729280726068,0.1797626,68623.0,68613.0,0.094]
[1729280726277,0.02436504,68622.0,68614.0,2.210924]
[1729280726514,0.16249604,68621.0,68614.0,2.210924]
[1729280726717,0.01353689,68620.0,68614.0,2.210924]
[1729280726926,0.14895915,68619.0,68614.0,2.190344]
[1729280727129,0.14895915,68619.0,68614.0,2.191196]
[1729280727340,0.14895915,68619.0,68615.0,0.1]
[1729280727589,0.14895915,68619.0,68613.0,0.194]
[1729280727809,0.14895915,68619.0,68616.0,0.1]
[1729280728261,0.00643902,68618.0,68616.0,0.1]
[1729280728461,0.14895915,68617.0,68616.0,0.1]
[1729280728722,0.15539766,68617.0,68616.0,0.1]
[1729280728920,0.15539766,68617.0,68613.0,0.194829]
[1729280729245,0.15539766,68617.0,68615.0,0.1]
[1729280729654,0.14895915,68617.0,68615.0,0.1]
[1729280729857,0.006438,68616.0,68615.0,0.1]
[1729280730063,0.15539715,68616.0,68615.0,0.1]
[1729280730288,0.15539715,68616.0,68615.0,1.714601]
[1729280730538,0.14895915,68616.0,68615.0,1.714601]
[1729280732123,0.14895915,68616.0,68615.0,1.699303]
[1729280732941,0.14895915,68616.0,68615.0,1.622244]
[1729280736888,0.14895915,68616.0,68615.0,1.484074]
[1729280740213,0.14895915,68616.0,68615.0,0.287579]
[1729280740413,0.15061715,68616.0,68615.0,0.287579]
[1729280740735,0.15705335,68616.0,68615.0,0.214714]
[1729280742338,0.17060749,68616.0,68615.0,0.1]
[1729280742745,0.17060749,68616.0,68615.0,0.214896]
[1729280742957,0.16417129,68616.0,68615.0,0.204666]
[1729280743174,0.17060749,68616.0,68615.0,0.204666]
[1729280743808,0.17060749,68616.0,68615.0,0.280898]
[1729280744416,0.16417129,68616.0,68615.0,0.280898]
[1729280744622,0.16417129,68616.0,68615.0,0.249667]
[1729280744824,0.17060749,68616.0,68615.0,0.206505]
[1729280745033,0.17060749,68616.0,68613.0,0.000829]
[1729280745213,0.14895915,68615.0,68613.0,0.000829]
[1729280745664,0.00643518,68614.0,68613.0,0.000829]
[1729280745902,0.15539433,68614.0,68613.0,0.000829]
[1729280746130,0.15539433,68614.0,68613.0,0.217392]
[1729280746330,0.15539433,68614.0,68613.0,0.100829]
[1729280746540,0.24824521,68614.0,68613.0,0.100829]
[1729280746744,0.259085,68614.0,68613.0,0.100829]
[1729280746950,0.28077309,68614.0,68613.0,0.100829]
[1729280747177,0.28076212,68614.0,68613.0,0.000829]
[1729280747389,0.29810525,68614.0,68613.0,0.000829]
[1729280749257,0.39530525,68614.0,68613.0,0.000829]
[1729280749474,0.41830525,68614.0,68613.0,0.000829]
[1729280749884,0.39661146,68614.0,68613.0,0.000829]
[1729280750093,0.39861146,68614.0,68613.0,0.000829]
[1729280750857,0.35689433,68614.0,68613.0,0.000829]
[1729280751059,0.39855845,68614.0,68613.0,0.000829]
[1729280751508,0.39855472,68614.0,68613.0,0.000829]
[1729280751736,0.64480548,68614.0,68613.0,0.000829]
[1729280752734,0.48508896,68614.0,68613.0,0.000829]
[1729280753365,0.39855472,68614.0,68613.0,0.000829]
[1729280754804,0.39655472,68614.0,68613.0,0.000829]
[1729280754937,0.39855472,68614.0,68613.0,0.000829]
[1729280756735,0.43976549,68614.0,68613.0,0.000829]
[1729280756952,0.39655472,68614.0,68613.0,0.000829]
[1729280758188,0.29935472,68614.0,68613.0,0.000829]
[1729280758607,0.28583114,68614.0,68613.0,0.000829]
[1729280758813,0.2993121,68614.0,68613.0,0.000829]
[1729280760801,0.1970121,68614.0,68613.0,0.000829]
[1729280761002,0.1797164,68614.0,68613.0,0.000829]
[1729280761257,0.16620414,68614.0,68613.0,0.000829]
[1729280761517,0.1689116,68614.0,68613.0,0.000829]
[1729280761725,0.17972741,68614.0,68613.0,0.000829]
[1729280762354,0.19054123,68614.0,68613.0,0.000829]
[1729280762570,0.17972741,68614.0,68613.0,0.000829]
[1729280765283,0.18138541,68614.0,68613.0,0.000829]
[1729280766130,0.18138541,68614.0,68613.0,0.094229]
[1729280767383,0.1705696,68614.0,68613.0,0.171229]
[1729280767594,0.00809318,68614.0,68613.0,0.271229]
[1729280768010,0.001658,68614.0,68613.0,0.271229]
[1729280769248,0.15061715,68614.0,68613.0,0.271229]
[1729280769877,0.15683495,68614.0,68613.0,0.271229]
[1729280773116,0.15683495,68614.0,68613.0,0.094229]
[1729280773325,0.17037318,68614.0,68613.0,0.000829]
[1729280773526,0.18120388,68614.0,68613.0,0.000829]
[1729280774226,0.17037318,68614.0,68613.0,0.000829]
[1729280774642,0.18120365,68614.0,68613.0,0.000829]
[1729280775827,0.18120735,68614.0,68613.0,0.000829]
[1729280776467,0.1812153,68614.0,68613.0,0.000829]
[1729280778340,0.17037959,68614.0,68613.0,0.000829]
[1729280780248,0.15683495,68614.0,68613.0,0.000829]
[1729280780487,0.17038182,68614.0,68613.0,0.000829]
[1729280784223,0.17039006,68614.0,68613.0,0.000829]
[1729280784858,0.18123588,68614.0,68613.0,0.000829]
[1729280785062,0.18123588,68614.0,68613.0,0.199029]
[1729280788036,0.18124447,68614.0,68613.0,0.199029]
[1729280789099,0.02143663,68614.0,68613.0,0.199029]
[1729280789316,0.001658,68614.0,68613.0,2.925893]
[1729280789547,0.001658,68614.0,68613.0,3.228623]
[1729280789769,0.001658,68614.0,68613.0,3.835622]
[1729280789980,0.001658,68614.0,68613.0,4.429129]
[1729280804018,0.001658,68614.0,68613.0,0.099029]
[1729280804463,0.15061715,68614.0,68613.0,0.000829]
[1729280804895,0.15668158,68614.0,68613.0,0.000829]
[1729280805100,0.1702058,68614.0,68613.0,0.000829]
[1729280805320,0.25822507,68614.0,68613.0,0.000829]
[1729280808856,0.25826507,68614.0,68613.0,0.000829]
[1729280811172,0.24474085,68614.0,68613.0,0.000829]
[1729280811420,0.25824885,68614.0,68613.0,0.000829]
[1729280812167,0.25824794,68614.0,68613.0,0.000829]
[1729280813159,0.18104794,68614.0,68613.0,0.000829]
[1729280813933,0.15672158,68614.0,68613.0,0.000829]
[1729280817030,0.23332158,68614.0,68613.0,0.000829]
[1729280817563,0.24683391,68614.0,68613.0,0.000829]
[1729280818399,0.24683311,68614.0,68613.0,0.000829]
[1729280819048,0.24683344,68614.0,68613.0,0.000829]
[1729280819680,0.25764135,68614.0,68613.0,0.000829]
[1729280821141,0.18104135,68614.0,68613.0,0.000829]
[1729280821588,0.17023072,68614.0,68613.0,0.000829]
[1729280821806,0.15672158,68614.0,68613.0,0.000829]
[1729280828064,0.15169329,68614.0,68613.0,0.000829]
[1729280832167,0.16523835,68614.0,68613.0,0.000829]
[1729280833428,0.1760805,68614.0,68613.0,0.000829]
[1729280834019,0.1777385,68614.0,68613.0,0.000829]
[1729280834226,0.16689635,68614.0,68613.0,0.000829]
[1729280834436,0.17774381,68614.0,68613.0,0.000829]
[1729280839823,0.17774372,68614.0,68613.0,0.000829]
[1729280841426,0.15335129,68614.0,68613.0,0.000829]
[1729280841634,0.17775944,68614.0,68613.0,0.000829]
[1729280841835,0.17775959,68614.0,68613.0,0.000829]
[1729280845385,0.17776341,68614.0,68613.0,0.000829]
[1729280847202,0.19512299,68614.0,68613.0,0.000829]
[1729280848629,0.17776341,68614.0,68613.0,0.000829]
[1729280849303,0.17776475,68614.0,68613.0,0.000829]
[1729280851555,0.19512586,68614.0,68613.0,0.000829]
[1729280853273,0.1707124,68614.0,68613.0,0.000829]
[1729280853478,0.19515558,68614.0,68613.0,0.000829]
[1729280853652,0.23853855,68614.0,68613.0,0.000829]
[1729280853851,0.19515471,68614.0,68613.0,0.000829]
[1729280854650,0.23855667,68614.0,68613.0,0.000829]
[1729280855074,0.23855498,68614.0,68613.0,0.000829]
[1729280855284,0.19515471,68614.0,68613.0,0.000829]
[1729280856378,0.26025512,68614.0,68613.0,0.000829]
[1729280856558,0.19515471,68614.0,68613.0,0.000829]
[1729280857215,0.23856209,68614.0,68613.0,0.000829]
[1729280857427,0.18429438,68614.0,68613.0,0.000829]
[1729280857637,0.24940546,68614.0,68613.0,0.000829]
[1729280857844,0.26026268,68614.0,68613.0,0.000829]
[1729280859573,0.1951516,68614.0,68613.0,0.000829]
[1729280859970,0.26027736,68614.0,68613.0,0.000829]
[1729280861314,0.26032294,68614.0,68613.0,0.000829]
[1729280861531,0.19519718,68614.0,68613.0,0.000829]
[1729280863043,0.19519718,68614.0,68608.0,0.00083]
[1729280863044,0.1989,68613.0,68608.0,0.00083]
[1729280863391,0.17395915,68609.0,68608.0,0.00083]
[1729280863393,0.34985915,68609.0,68608.0,0.00083]
[1729280863588,0.56067274,68609.0,68608.0,0.00083]
[1729280863786,0.61678502,68609.0,68608.0,0.00083]
[1729280864056,0.61677538,68609.0,68608.0,0.00083]
[1729280864172,0.61668145,68609.0,68608.0,0.00083]
[1729280864375,0.57143823,68609.0,68608.0,0.00083]
[1729280864814,0.5578519,68609.0,68608.0,0.00083]
[1729280865019,0.57138707,68609.0,68608.0,0.00083]
[1729280866160,0.7015638,68609.0,68608.0,0.00083]
[1729280867305,0.57138707,68609.0,68608.0,0.00083]
[1729280867554,0.56888707,68609.0,68608.0,0.00083]
[1729280868741,0.66765615,68609.0,68608.0,0.00083]
[1729280868959,0.55148252,68609.0,68608.0,0.00083]
[1729280869188,0.56882895,68609.0,68608.0,0.00083]
[1729280870259,0.69887474,68609.0,68608.0,0.00083]
[1729280870455,0.69855259,68609.0,68608.0,0.00083]
[1729280871338,0.70021059,68609.0,68608.0,0.00083]
[1729280871549,0.70021059,68609.0,68592.0,0.21826913]
[1729280871550,0.002,68596.0,68592.0,0.21826913]
[1729280871765,0.21670411,68595.0,68592.0,0.21826913]
[1729280871998,0.25772356,68595.0,68592.0,0.21826913]
[1729280872200,0.25772356,68595.0,68577.0,0.21826913]
[1729280872201,0.21007036,68595.0,68577.0,0.21826913]
[1729280872433,0.19653411,68595.0,68577.0,0.21826913]
[1729280872639,0.19644519,68595.0,68577.0,0.21826913]
[1729280872853,0.19709403,68595.0,68577.0,0.21826913]
[1729280873075,0.19709403,68595.0,68554.0,0.04355865]
[1729280873076,0.27659403,68595.0,68578.0,0.21826913]
[1729280873289,0.44729169,68595.0,68586.0,0.21909813]
[1729280873743,0.46074213,68595.0,68586.0,0.21909813]
[1729280874184,0.47426985,68595.0,68586.0,0.21909813]
[1729280875345,0.5824049,68595.0,68586.0,0.21909813]
[1729280875564,0.002,68583.0,68579.0,0.1]
[1729280875785,0.14895915,68580.0,68579.0,0.1]
[1729280875998,0.15978304,68580.0,68579.0,0.1]
[1729280876215,0.15978304,68580.0,68574.0,0.0979]
[1729280876216,0.16556173,68580.0,68574.0,0.0979]
[1729280876426,0.15473784,68580.0,68574.0,0.0979]
[1729280877733,0.01350537,68579.0,68574.0,0.0979]
[1729280877913,0.14895915,68578.0,68574.0,0.0979]
[1729280878142,0.15473682,68578.0,68574.0,0.0979]
[1729280882297,0.14895915,68576.0,68569.0,0.1]
[1729280882803,0.00577614,68575.0,68569.0,0.1]
[1729280883020,0.14895915,68574.0,68569.0,0.1]
[1729280883235,0.15473478,68574.0,68569.0,0.09943]
[1729280884136,0.15473478,68574.0,68568.0,0.1177257]
[1729280884137,0.14895915,68570.0,68568.0,0.1177257]
[1729280884349,0.14895915,68569.0,68568.0,0.0179257]
[1729280884561,0.15471589,68569.0,68568.0,0.0179257]
[1729280884774,0.16820353,68569.0,68568.0,0.0179257]
[1729280885655,0.15471589,68569.0,68568.0,0.0179257]
[1729280887598,0.16820043,68569.0,68568.0,0.0119257]
[1729280887838,0.15471589,68569.0,68568.0,0.29070272]
[1729280888028,0.15471589,68569.0,68568.0,0.2829257]
[1729280888505,0.14895915,68569.0,68568.0,0.2829257]
[1729280888942,0.15471589,68569.0,68568.0,0.2829257]
[1729280889629,0.00575674,68569.0,68568.0,0.5169837]
[1729280889839,0.00734939,68569.0,68568.0,0.5169837]
[1729280890052,0.0494959,68583.0,68574.0,0.0925]
[1729280890269,0.0494959,68583.0,68574.0,0.1925]
[1729280890270,0.21826913,68575.0,68574.0,0.1925]
[1729280890495,0.15631738,68582.0,68575.0,0.0925]
[1729280890681,0.15631738,68582.0,68573.0,0.0752]
[1729280890682,0.14895915,68582.0,68576.0,0.1925]
[1729280891614,0.14895915,68582.0,68568.0,0.0119257]
[1729280891615,0.14895915,68582.0,68578.0,0.1946]
[1729280892119,0.21826913,68592.0,68579.0,0.0946]
[1729280892340,0.21826913,68592.0,68569.0,0.21826913]
[1729280892341,0.17330753,68591.0,68581.0,0.1946]
[1729280892574,0.0498463,68592.0,68586.0,0.0776]
[1729280892789,0.21826913,68591.0,68589.0,0.1722]
[1729280893016,0.21826913,68600.0,68591.0,0.0927]
[1729280893226,0.14895915,68599.0,68591.0,0.0927]
[1729280895672,0.14895915,68599.0,68593.0,0.1]
[1729280895885,0.14895915,68599.0,68591.0,0.0927]
[1729280898593,0.21826913,68598.0,68591.0,0.0927]
[1729280898807,0.14895915,68597.0,68591.0,0.0927]
[1729280899022,0.14895915,68597.0,68583.0,0.21826913]
[1729280899023,0.14895915,68597.0,68583.0,0.196]
[1729280899259,0.14895915,68597.0,68583.0,0.41426913]
[1729280899486,0.21826913,68596.0,68583.0,0.41426913]
[1729280899727,0.16246974,68595.0,68583.0,0.41426913]
[1729280899936,0.01351059,68594.0,68583.0,0.41426913]
[1729280900147,0.14895915,68593.0,68583.0,0.41426913]
[1729280900587,0.14895915,68593.0,68583.0,0.196]
[1729280901270,0.37771787,68592.0,68577.0,0.1]
[1729280901473,0.37771787,68592.0,68573.0,0.0975]
[1729280901474,0.37771787,68592.0,68580.0,0.1]
[1729280901706,0.01350997,68591.0,68580.0,0.1]
[1729280901916,0.14895915,68590.0,68580.0,0.1]
[1729280902134,0.14895915,68589.0,68580.0,0.1]
[1729280902553,0.01048116,68588.0,68573.0,0.1975]
[1729280902757,0.14895915,68587.0,68575.0,0.1]
[1729280902985,0.14895915,68587.0,68577.0,0.1]
[1729280903196,0.14895915,68587.0,68579.0,0.1]
[1729280903416,0.01047912,68586.0,68579.0,0.1]
[1729280903646,0.0825,68584.0,68564.0,0.0975]
[1729280903857,0.01350214,68583.0,68572.0,0.21826913]
[1729280904096,0.14895915,68582.0,68572.0,0.21826913]
[1729280904357,0.14895915,68582.0,68573.0,0.21826913]
[1729280904596,0.14895915,68582.0,68564.0,0.0975]
[1729280904597,0.01047402,68581.0,68564.0,0.0975]
[1729280904821,0.14895915,68580.0,68571.0,0.1]
[1729280905064,0.21826913,68579.0,68571.0,0.1]
[1729280905284,0.14895915,68578.0,68571.0,0.1]
[1729280905555,0.15943011,68578.0,68571.0,0.1]
[1729280905983,0.15943011,68578.0,68565.0,0.1]
[1729280906201,0.15943011,68578.0,68564.0,0.0975]
[1729280906202,0.15943011,68578.0,68571.0,0.1]
[1729280906604,0.14895915,68578.0,68571.0,0.1]
[1729280906746,0.01047016,68577.0,68571.0,0.1]
[1729280906969,0.14895915,68576.0,68571.0,0.1]
[1729280907347,0.01046812,68575.0,68568.0,0.0127547]
[1729280907577,0.01046812,68575.0,68571.0,0.1]
[1729280907578,0.14895915,68574.0,68571.0,0.1]
[1729280908450,0.01046608,68573.0,68571.0,0.1]
[1729280908635,0.14895915,68572.0,68568.0,0.0127547]
[1729280909059,0.01046404,68571.0,68568.0,0.0127547]
[1729280909347,0.14895915,68570.0,68568.0,0.0127547]
[1729280909525,0.15942217,68570.0,68568.0,0.0127547]
[1729280913084,0.17291487,68570.0,68568.0,0.0127547]
[1729280913727,0.15942217,68570.0,68568.0,0.0127547]
[1729280919203,0.16108017,68570.0,68568.0,0.0127547]
[1729280925351,0.17456874,68570.0,68568.0,0.0127547]
[1729280927290,0.18535814,68570.0,68568.0,0.0127547]
[1729280927499,0.16108017,68570.0,68568.0,0.0127547]
[1729280927689,0.16108017,68570.0,68568.0,0.1127547]
[1729280931217,0.18539135,68570.0,68568.0,0.1127547]
[1729280932942,0.17459542,68570.0,68568.0,0.1127547]
[1729280933363,0.18540762,68570.0,68568.0,0.1127547]
[1729280935748,0.18541377,68570.0,68568.0,0.1127547]
[1729280936836,0.17189237,68570.0,68568.0,0.1127547]
[1729280937041,0.17459706,68570.0,68568.0,0.1127547]
[1729280937467,0.18541039,68570.0,68568.0,0.1127547]
[1729280943721,0.18542839,68570.0,68568.0,0.1127547]
[1729280944237,0.20274268,68570.0,68568.0,0.1127547]
[1729280944438,0.18542839,68570.0,68568.0,0.1127547]
[1729280944659,0.20274268,68570.0,68568.0,0.1127547]
[1729280945745,0.28324268,68570.0,68568.0,0.0127547]
[1729280946207,0.27981538,68570.0,68568.0,0.0127547]
[1729280946427,0.32299237,68570.0,68568.0,0.0127547]
[1729280946650,0.32300341,68570.0,68568.0,0.0127547]
[1729280946873,0.30281538,68570.0,68568.0,0.0127547]
[1729280947587,0.54866377,68570.0,68568.0,0.0127547]
[1729280948209,0.46234976,68570.0,68568.0,0.0127547]
[1729280948444,0.54876488,68570.0,68568.0,0.0127547]
[1729280948642,0.46234976,68570.0,68568.0,0.0127547]
[1729280948843,0.30281327,68570.0,68568.0,0.0127547]
[1729280949043,0.36764212,68570.0,68568.0,0.0127547]
[1729280949248,0.46239557,68570.0,68568.0,0.0127547]
[1729280950188,0.54885812,68570.0,68568.0,0.0127547]
[1729280950607,0.46239557,68570.0,68568.0,0.0127547]
[1729280952129,0.57033806,68570.0,68568.0,0.0127547]
[1729280952331,0.46239557,68570.0,68568.0,0.0127547]
[1729280953389,0.57033806,68570.0,68568.0,0.0127547]
[1729280954442,0.41075576,68570.0,68568.0,0.0127547]
[1729280954656,0.57060471,68570.0,68568.0,0.0127547]
[1729280955271,0.46247441,68570.0,68568.0,0.0127547]
[1729280956892,0.46245444,68570.0,68568.0,0.0127547]
[1729280957544,0.3027933,68570.0,68568.0,0.0127547]
[1729280957751,0.46249607,68570.0,68568.0,0.0127547]
[1729280959244,0.38199607,68570.0,68568.0,0.0127547]
[1729280959455,0.36847139,68570.0,68568.0,0.0127547]
[1729280959662,0.50745156,68570.0,68568.0,0.0127547]
[1729280959871,0.38198889,68570.0,68568.0,0.0127547]
[1729280960344,0.49014708,68570.0,68568.0,0.0127547]
[1729280960610,0.38198889,68570.0,68568.0,0.0127547]
[1729280960822,0.4685176,68570.0,68568.0,0.0127547]
[1729280964775,0.38198889,68570.0,68568.0,0.0127547]
[1729280965457,0.49021333,68570.0,68568.0,0.0127547]
[1729280967111,0.49025623,68570.0,68568.0,0.0127547]
[1729280968698,0.38203179,68570.0,68568.0,0.0127547]
[1729280971238,0.49025623,68570.0,68568.0,0.0127547]
[1729280971662,0.38203179,68570.0,68568.0,0.0127547]
[1729280972683,0.38205233,68570.0,68568.0,0.0127547]
[1729280973057,0.38399834,68570.0,68568.0,0.0127547]
[1729280973269,0.38410091,68570.0,68568.0,0.0127547]
[1729280978597,0.3667687,68570.0,68568.0,0.0127547]
[1729280979031,0.38409455,68570.0,68568.0,0.0127547]
[1729280980919,0.38409455,68570.0,68569.0,0.195229]
[1729280980920,0.36109455,68570.0,68569.0,0.195229]
[1729280981152,0.47220749,68570.0,68569.0,0.195229]
[1729280981388,0.36397341,68570.0,68569.0,0.195229]
[1729280981813,0.45056509,68570.0,68569.0,0.195229]
[1729280982222,0.36397341,68570.0,68569.0,0.195229]
[1729280982848,0.45056711,68570.0,68569.0,0.195229]
[1729280983271,0.36397341,68570.0,68569.0,0.195229]
[1729280983514,0.45054161,68570.0,68569.0,0.195229]
[1729280984201,0.36397341,68570.0,68569.0,0.195229]
[1729280985336,0.47220749,68570.0,68569.0,0.195229]
[1729280985634,0.36397341,68570.0,68569.0,0.195229]
[1729280986090,0.35043759,68570.0,68569.0,0.195229]
[1729280986365,0.18682865,68570.0,68569.0,0.195229]
[1729280986600,0.25175691,68570.0,68569.0,0.195229]
[1729280986820,0.18682865,68570.0,68569.0,0.195229]
[1729280987489,0.0378695,68570.0,68569.0,0.28623699]
[1729280987718,0.01351859,68570.0,68569.0,0.275129]
[1729280987960,0.001658,68570.0,68569.0,0.275129]
[1729280989071,0.15061715,68570.0,68569.0,0.275129]
[1729280989509,0.16248504,68570.0,68569.0,0.275129]
[1729280989724,0.17599886,68570.0,68569.0,0.275129]
[1729280989932,0.16248504,68570.0,68569.0,0.275129]
[1729280994509,0.16248504,68570.0,68569.0,0.195229]
[1729280998774,0.17599068,68570.0,68569.0,0.195229]
[1729280998989,0.18679506,68570.0,68569.0,0.195229]
[1729281001229,0.18679339,68570.0,68569.0,0.195229]
[1729281004976,0.18679056,68570.0,68569.0,0.195229]
[1729281005200,0.17598968,68570.0,68569.0,0.195229]
[1729281006732,0.17598968,68570.0,68569.0,0.000829]
[1729281006944,0.18679289,68570.0,68569.0,0.000829]
[1729281010739,0.23007136,68570.0,68569.0,0.000829]
[1729281011445,0.18679289,68570.0,68569.0,0.000829]
[1729281011688,0.20408005,68570.0,68569.0,0.000829]
[1729281012159,0.19898968,68570.0,68569.0,0.000829]
[1729281012448,0.2270905,68570.0,68569.0,0.000829]
[1729281013388,0.27028346,68570.0,68569.0,0.000829]
[1729281016362,0.228678,68570.0,68569.0,0.000829]
[1729281016585,0.25677807,68570.0,68569.0,0.000829]
[1729281016809,0.27028685,68570.0,68569.0,0.000829]
[1729281017230,0.2529945,68570.0,68569.0,0.000829]
[1729281017447,0.27028685,68570.0,68569.0,0.000829]
[1729281018492,0.20409389,68570.0,68569.0,0.000829]
[1729281018718,0.18680154,68570.0,68569.0,0.000829]